Cogmind - Beta 13 @@@ ROGUE MODE // 2024.05.17 @ 19:57:25 Player: trisiak Result: Destroyed by G-47 Trooper with Particle Gun Performance ------------- Evolutions (3) 1500 Regions Visited (10) 2000 Robots Destroyed (179) 895 Value Destroyed (5188) 5188 Prototype IDs (12) 240 Alien Tech Used (0) 0 Bonus (182) 182 TOTAL SCORE: 10005 Bonus ------- High Alert Combat Kills 182 Cogmind --------- Core Integrity 0/700 Matter 5/300 Energy 9/300 System Corruption 21% Temperature Cool (13) Movement Core (450) Ox8 Location -7/Factory Parts ------- > --- POWER (1) -------- Enhanced Nuclear Core > --- PROPULSION (3) --- (None) > --- UTILITY (7) ------ Advanced Visual Processing Unit Improved Signal Interpreter Advanced Terrain Scan Processor Advanced Targeting Computer Improved Force Field > --- WEAPON (2) ------- Heavy Missile Launcher > --- INVENTORY (5) ---- Medium Matter Pod (0) Improved Sensor Array Improved Terrain Scanner Improved Field Recycling Unit (0) Power Maul Peak State ------------ > --- POWER ------------ Enhanced Nuclear Core > --- PROPULSION ------- Armored Treads Armored Huge Wheel > --- UTILITY ---------- Large Storage Unit Advanced Visual Processing Unit Improved Signal Interpreter Improved Terrain Scan Processor Advanced Targeting Computer Kinecellerator Hardened Medium Armor Plating > --- WEAPON ----------- Mini Assault Cannon Power Maul > --- INVENTORY -------- Micro Nuclear Core Medium Matter Pod Improved Terrain Scanner Advanced Targeting Computer Transmission Jammer Improved Utility Shielding Hardened Medium Armor Plating Hardened Medium Armor Plating Improved Medium Armor Plating Dynamic Insulation System Improved EM Pulse Cannon Advanced Assault Cannon Advanced Assault Cannon Heavy Missile Launcher Heavy Missile Launcher [Rating: 50] Favorites ----------- Power Light Nuclear Core Engine Improved Ion Engine Power Core Light Nuclear Core Propulsion Light Treads Treads Light Treads Leg Aluminum Leg Wheel Armored Huge Wheel Utility Large Storage Unit Device Improved Terrain Scanner Storage Large Storage Unit Processor Signal Interpreter Protection Hardened Medium Armor Plating Weapon Heavy Assault Rifle Energy Gun Improved Medium Laser Energy Cannon Beam Cannon Ballistic Gun Heavy Assault Rifle Ballistic Cannon Advanced Assault Cannon Launcher Rocket Launcher Special Weapon Mining Laser Impact Weapon Great Maul Slashing Weapon Katana Special Melee Weapon Datajack Build | -11 -10 -10 -9 -9 -9 -8 -8 -7 -7 -7 ------- Run | Yrd Mat Min Mat Min Exi Min Mat Fac Was Fac Slots Evolved 6 | . . . 2 . . . 2 2 . . Power . | . . . . . . . . . . . Propulsion 1 | . . . . . . . 1 . . . Utility 5 | . . . 2 . . . 1 2 . . Weapon . | . . . . . . . . . . . Parts Attached 365 | 4 42 8 58 12 1 18 101 67 4 50 Power 30 | . 5 . 7 . . 2 7 4 . 5 Engine 16 | . 4 . 6 . . 2 3 1 . . Core 14 | . 1 . 1 . . . 4 3 . 5 Reactor . | . . . . . . . . . . . Propulsion 45 | 3 10 . 10 . . 4 13 3 . 2 Treads 29 | 2 7 . 7 . . . 11 2 . . Leg 3 | 1 . . . . . . 2 . . . Wheel 13 | . 3 . 3 . . 4 . 1 . 2 Hover . | . . . . . . . . . . . Flight . | . . . . . . . . . . . Utility 149 | 1 9 7 17 6 1 5 30 41 3 29 Device 103 | 1 5 6 9 4 1 4 18 30 2 23 Storage 7 | . 4 . 1 . . . 1 . . 1 Processor 9 | . . 1 2 . . . 4 1 . 1 Hackware . | . . . . . . . . . . . Protection 30 | . . . 5 2 . 1 7 10 1 4 Artifact . | . . . . . . . . . . . Weapon 141 | . 18 1 24 6 . 7 51 19 1 14 Energy Gun 8 | . . . 4 . . . 2 1 . 1 Energy Cannon 14 | . 3 . 3 . . . 8 . . . Ballistic Gun 43 | . 8 . 9 2 . 4 20 . . . Ballistic Cannon 21 | . . . . . . . 5 8 . 8 Launcher 21 | . . 1 3 4 . 2 8 1 1 1 Special Weapon 3 | . 2 . 1 . . . . . . . Impact Weapon 25 | . . . 4 . . 1 7 9 . 4 Slashing Weapon 1 | . . . . . . . 1 . . . Piercing Weapon . | . . . . . . . . . . . Special Melee Weapon 5 | . 5 . . . . . . . . . Unidentified Prototypes 9 | . . . 2 . . . 3 4 . . Corrupted Parts 3 | . . . . . . . 3 . . . System Corruption 4 | . . . . . . . 4 . . . Parts Lost 41 | . 3 1 9 . . 6 15 3 2 2 Power 7 | . 2 . 2 . . 2 1 . . . Propulsion 12 | . . . 3 . . 3 5 1 . . Utility 11 | . . 1 2 . . . 4 2 . 2 Weapon 11 | . 1 . 2 . . 1 5 . 2 . Highest Loss Streak 5 | . 1 1 2 . . 2 5 1 1 1 To Critical Strikes . | . . . . . . . . . . . Average Slot Usage (%) 95 | . 96 99 96 100 100 97 92 96 77 81 Engine 2 | . 9 . 6 . . 6 1 . . . Core 7 | . 2 14 3 11 11 3 7 7 7 6 Treads 18 | . 25 28 18 22 22 9 17 17 . . Wheel 2 | . 2 . 1 . . 11 3 1 7 6 Device 11 | . 13 9 9 9 11 10 14 13 8 11 Storage 10 | . 14 14 11 11 11 11 9 7 7 6 Processor 18 | . . 3 19 22 22 22 13 29 30 30 Protection 2 | . . . 4 1 . . 6 1 6 3 Energy Cannon 2 | . 3 14 1 . . . 4 . . . Ballistic Gun 8 | . 18 . 14 17 11 18 7 . . . Ballistic Cannon 2 | . . . . . . . 1 8 6 6 Launcher 3 | . . 14 1 4 11 3 1 . 1 . Impact Weapon 2 | . . . 1 . . . 2 5 1 5 Naked Turns . | . . . . . . . . . . . Heaviest Build 87 | 14 87 32 42 40 33 41 47 52 40 71 Greatest Support 68 | 40 40 40 40 40 40 40 60 68 28 28 Greatest Overweight (x) 11 | . 5 . 2 . . 8 3 1 1 11 Average Overweight (x) . | . . . . . . . . . 1 1 Largest Inventory Capacity 25 | 8 25 15 15 15 15 15 15 15 15 15 Average Capacity 14 | 8 14 15 15 15 15 15 15 15 15 14 Most Carried 15 | 8 15 15 15 15 15 15 15 15 15 15 Average Carried 14 | 6 10 14 14 14 15 14 14 14 15 14 Final Capacity 15 | 8 15 15 15 15 15 15 15 15 15 5 Final Carried 15 | 6 15 15 15 15 15 15 15 15 15 5 Class Distribution -------------------- 39% | Scavenger-Mutant 33% | Mutant 20% | Assassin 4% | Skirmisher Dominant Class ---------------- Mutant | -10/Materials Mutant | -10/Mines Scavenger-Mutant | -9/Materials Scavenger-Mutant | -9/Mines Scavenger-Mutant | -9/Exiles Scavenger-Mutant | -8/Mines Scavenger-Mutant | -8/Materials Assassin | -7/Factory Mutant | -7/Waste Assassin | -7/Factory Resources | -11 -10 -10 -9 -9 -9 -8 -8 -7 -7 -7 ----------- Run | Yrd Mat Min Mat Min Exi Min Mat Fac Was Fac Matter Collected 6041 | 245 609 162 1212 197 136 352 1692 1100 . 336 Remotely 1279 | . . . . . . . 1082 137 . 60 Salvage Created 5819 | 113 578 159 1611 255 . 288 1693 794 . 328 Parts 376 | 5 44 12 128 18 . 25 81 43 . 20 Haulers Intercepted 13 | . 2 . 5 . . . 2 4 . . Recyclers Shooed 3 | . . . 1 . . . 2 . . . Parts Field Recycled 36 | . . . . . . . . . . 36 Retrieved Matter 520 | . . . . . . . . . . 520 Parts Self-Destructed . | . . . . . . . . . . . Prevented . | . . . . . . . . . . . Kills | -11 -10 -10 -9 -9 -9 -8 -8 -7 -7 -7 ------- Run | Yrd Mat Min Mat Min Exi Min Mat Fac Was Fac Combat Hostiles Destroyed 129 | . 14 6 37 6 . 9 34 14 . 9 Melee 2 | . . . . . . . . 2 . . Guns 52 | . 12 . 22 2 . 7 9 . . . Cannons 30 | . 2 2 3 . . . 9 9 . 5 AOE 39 | . . 4 11 4 . 2 14 2 . 2 Classes Destroyed 17 | 2 4 . 4 1 . . 4 2 . . Worker 8 | . . . 2 . . 2 . 3 . 1 Builder 9 | . 1 . 2 . . 1 4 . . 1 Tunneler 8 | 1 . . . 6 . 1 . . . . Hauler 13 | . 2 . 5 . . . 2 4 . . Recycler 6 | 1 . . 3 . . . 2 . . . Mechanic 1 | . . . . . . . 1 . . . Operator 1 | . . . 1 . . . . . . . Watcher 6 | . . . 3 . . . . 3 . . Swarmer 27 | . 6 . 15 . . 6 . . . . Grunt 70 | . 8 6 14 5 . 2 25 5 . 5 Brawler 2 | . . . . . . . 1 1 . . Duelist 2 | . . . . 1 . 1 . . . . Sentry 18 | . . . 8 . . . 5 4 . 1 Specialist 2 | . . . . . . . 2 . . . Hunter 2 | . . . . . . . . 2 . . Programmer 5 | . . . . . . . . 2 . 3 Heavy 1 | . . . . . . . 1 . . . Best Kill Streak 7 | 2 3 2 7 4 . 6 7 3 . 2 Combat Bots Only 6 | . 3 2 5 3 . 3 6 3 . 2 Max Kills in Single Turn 3 | 1 1 1 3 2 . 2 3 2 . 2 Gunslinging . | . . . . . . . . . . . Exploded 3 | . . 1 2 2 . 2 3 2 . 2 Melee 1 | . . . . . . . . 1 . . Uniques/NPCs Destroyed . | . . . . . . . . . . . Combat | -11 -10 -10 -9 -9 -9 -8 -8 -7 -7 -7 -------- Run | Yrd Mat Min Mat Min Exi Min Mat Fac Was Fac Hostile Shots Fired 1047 | . 93 18 163 23 . 43 202 278 3 224 Missed 281 | . 15 3 39 7 . 9 44 101 1 62 Damage Taken 10276 | . 841 225 1386 197 . 703 3224 1702 141 1857 Core 1549 | . 145 14 155 44 . 70 407 198 82 434 Absorbed by Shields 191 | . . . . . . . . . . 191 Redirected to Shielding 71 | . . . . . . . 40 . . 31 Ignored by Resistances 40 | . . . . . . . . 40 . . Regen/Repaired (Parts) 182 | . . . 84 . . . 67 . . 31 Core Remaining (%) 48 | 100 . 36 . . . 32 26 . . . Volleys Fired 496 | 5 81 20 129 17 . 31 125 59 . 29 Largest 2 | 2 2 1 2 2 . 2 2 2 . 2 Hottest 120 | 70 120 60 120 46 . 56 119 96 . 96 Shots Fired 788 | 10 144 20 196 26 . 59 201 88 . 44 Gun 506 | 10 122 . 177 22 . 53 122 . . . Cannon 224 | . 13 12 11 . . . 60 86 . 42 Launcher 48 | . . 8 7 4 . 6 19 2 . 2 Special 10 | . 9 . 1 . . . . . . . Kinetic 614 | 5 122 . 151 22 . 53 133 86 . 42 Thermal 95 | 5 22 12 38 . . . 18 . . . Explosive 48 | . . 8 7 4 . 6 19 2 . 2 Electromagnetic 31 | . . . . . . . 31 . . . Robot Hit Streak 17 | 4 16 2 10 4 . 13 17 9 . 5 Robot Miss Streak 6 | 2 5 2 5 3 . 3 6 2 . 3 Penetration Max . | . . . . . . . . . . . Secondary Targets 5 | . 4 . . . . . 1 . . . Max Gunslinging Chain 1 | . 1 . . . . . 1 . . . Shots Hit Robots 526 | 6 95 6 122 17 . 35 149 67 . 29 Core Hits 267 | 4 28 14 67 12 . 18 83 29 . 12 Critical Kills 2 | . . . . . . . 1 1 . . Critical Parts Destroyed 7 | . 1 . 1 . . . 1 3 . 1 Critical Strikes 14 | . 1 . 2 . . . 2 7 . 2 Burn 1 | . . . 1 . . . . . . . Destroy 3 | . 1 . . . . . 2 . . . Blast 4 | . . . . . . . . 3 . 1 Smash 6 | . . . 1 . . . . 4 . 1 Melee Attacks 128 | . 14 . 13 2 . 2 16 56 . 25 Impact 110 | . . . 13 2 . 2 12 56 . 25 Slashing 4 | . . . . . . . 4 . . . Piercing . | . . . . . . . . . . . Sneak Attacks 21 | . 11 . . 2 . . 2 4 . 2 Combat Hostiles . | . . . . . . . . . . . Follow-up Attacks . | . . . . . . . . . . . Damage Inflicted 14258 | 53 942 515 2943 769 . 696 4649 2421 . 1270 Guns 4645 | 53 801 . 1733 185 . 500 1373 . . . Cannons 3583 | . 141 104 141 . . . 1126 1415 . 656 Explosions 4451 | . . 411 1025 452 . 196 1934 203 . 230 Melee 1552 | . . . 44 132 . . 216 779 . 381 Ramming 27 | . . . . . . . . 24 . 3 Kinetic 6579 | 28 801 . 1414 185 . 500 1580 1415 . 656 Thermal 1343 | 25 141 104 644 . . . 429 . . . Explosive 4163 | . . 411 841 452 . 196 1830 203 . 230 Electromagnetic 594 | . . . . . . . 594 . . . Impact 1378 | . . . 44 132 . . 42 779 . 381 Slashing 174 | . . . . . . . 174 . . . Piercing . | . . . . . . . . . . . Highest Corruption 21 | . . . . . . 5 13 5 20 21 Average Corruption 11 | . . . . . . 5 10 4 14 20 Corruption Purged . | . . . . . . . . . . . Corruption Blocked . | . . . . . . . . . . . Effects 185 | . . . . . . 10 75 26 6 68 Message Errors 42 | . . . . . . 1 18 8 1 14 Matter Fused 41 | . . . . . . 2 19 5 2 13 Heat Flow Errors 21 | . . . . . . 2 7 1 . 11 Energy Discharges 26 | . . . . . . 2 11 3 1 9 Parts Rejected 4 | . . . . . . . . 2 . 2 Parts Fused 1 | . . . . . . . . 1 . . Data Loss (minor) 20 | . . . . . . 2 8 4 . 6 Data Loss (major) 8 | . . . . . . . . 2 1 5 Misfires 12 | . . . . . . 1 6 . . 5 Alerts 4 | . . . . . . . 3 . . 1 Misdirections 5 | . . . . . . . 2 . 1 2 Weapon Failures 1 | . . . . . . . 1 . . . Overload Shots . | . . . . . . . . . . . Overflow Damage 767 | . . . 128 75 . 2 60 318 . 184 Projectiles 26 | . . . . . . . . 20 . 6 Explosions 106 | . . . 84 3 . 2 6 . . 11 Melee 635 | . . . 44 72 . . 54 298 . 167 Knockbacks 19 | . . . 1 1 . . 1 4 . 12 Impact 2 | . . . 1 1 . . . . . . Kinetic 17 | . . . . . . . 1 4 . 12 Secondary . | . . . . . . . . . . . Self-Inflicted Damage 168 | . . 5 30 13 . . 57 10 . 53 Shots 10 | . . 1 1 2 . . 2 1 . 3 Rammed 6 | . . . . . . . 1 2 . 3 Targets Rammed 6 | . . . . . . . 1 2 . 3 Kicked . | . . . . . . . . . . . Crushed . | . . . . . . . . . . . Highest Temperature 439 | 60 336 138 338 14 . 246 380 346 . 439 Average Temperature 90 | 28 85 54 63 6 . 59 98 106 . 121 Received Heat Transfer 3724 | . 324 144 468 102 . 99 1296 321 18 952 Effects 9 | . . . 2 . . . 3 2 . 2 Shutdowns 1 | . . . . . . . 1 . . . Energy Bleed 5 | . . . 1 . . . 2 2 . . Matter Decay 2 | . . . . . . . . . . 2 Short Circuit 1 | . . . 1 . . . . . . . Siege Activations . | . . . . . . . . . . . Robots Corrupted 2 | . . . . . . . 2 . . . Combat Hostiles 2 | . . . . . . . 2 . . . Parts Fried 14 | . . . 2 4 . . 2 2 . 4 Impact Corruptions 18 | . . . 1 3 . . 1 7 . 6 Robots Melted . | . . . . . . . . . . . Combat Hostiles . | . . . . . . . . . . . Parts Melted 5 | . . . 5 . . . . . . . Heat Transferred 2396 | 74 296 222 1223 . . . 581 . . . Parts Sabotaged . | . . . . . . . . . . . Parts Stolen . | . . . . . . . . . . . Parts Stripped . | . . . . . . . . . . . Power Chain Reactions 2 | . . . . . . . 2 . . . Alert | -11 -10 -10 -9 -9 -9 -8 -8 -7 -7 -7 ------- Run | Yrd Mat Min Mat Min Exi Min Mat Fac Was Fac Peak Influence 573 | 10 165 185 483 213 . 170 573 239 83 220 Initial 100 | . 6 30 . 100 . . 5 100 83 40 Average 139 | 6 69 47 327 135 . 50 252 76 71 56 Maximum Alert Level 2 | . . . 2 1 . . 2 1 . 1 Low Security (%) 73 | 100 100 100 10 73 . 100 42 93 100 96 Level 1 18 | . . . 58 26 . . 38 6 . 3 Level 2 8 | . . . 30 . . . 18 . . . Level 3 . | . . . . . . . . . . . Level 4 . | . . . . . . . . . . . Level 5 . | . . . . . . . . . . . High Security . | . . . . . . . . . . . Max Security . | . . . . . . . . . . . Squads Dispatched 38 | . 6 . 7 . . . 8 9 . 8 Investigation 21 | . 5 . 5 . . . 3 3 . 5 Extermination 5 | . . . . . . . . 2 . 3 Reinforcement 12 | . 1 . 2 . . . 5 4 . . Assault . | . . . . . . . . . . . Garrison . | . . . . . . . . . . . Intercept . | . . . . . . . . . . . Searches Triggered . | . . . . . . . . . . . Construction Impeded 1 | . . . . . . . 1 . . . Haulers Reinforced 2 | . . . . . . . . 2 . . Active Scanning Responses . | . . . . . . . . . . . Cargo Convoy Interrupts 1 | . . . . . . . . 1 . . Stealth | -11 -10 -10 -9 -9 -9 -8 -8 -7 -7 -7 --------- Run | Yrd Mat Min Mat Min Exi Min Mat Fac Was Fac Distress Signals 9 | . 4 . 3 . . . 2 . . . Communications Jammed 11 | . . . . . . . . 11 . . Distress Signals 11 | . . . . . . . . 11 . . Times Spotted 212 | . 23 6 66 6 . 11 56 21 7 16 Peak Tracking Total 7 | . 5 2 7 3 . 3 6 3 6 6 Tactical Retreats 15 | . 2 . 3 . . 2 6 . 1 1 Traps | -11 -10 -10 -9 -9 -9 -8 -8 -7 -7 -7 ------- Run | Yrd Mat Min Mat Min Exi Min Mat Fac Was Fac Traps Triggered 12 | . 2 . 2 . . . 1 4 . 3 Indirectly . | . . . . . . . . . . . Trap Hack Attempts . | . . . . . . . . . . . Triggered . | . . . . . . . . . . . Disarmed . | . . . . . . . . . . . Reprogrammed . | . . . . . . . . . . . Reused . | . . . . . . . . . . . Traps Extracted . | . . . . . . . . . . . Installed . | . . . . . . . . . . . Triggered 1 | . . . . . . . . 1 . . Machines | -11 -10 -10 -9 -9 -9 -8 -8 -7 -7 -7 ---------- Run | Yrd Mat Min Mat Min Exi Min Mat Fac Was Fac Machines Disabled 11 | . . 2 3 . . . 3 . . 3 Max in Single Turn 2 | . . 2 2 . . . 1 . . 2 Garrison Access 3 | . . . . . . . 1 1 . 1 Machines Repaired . | . . . . . . . . . . . Machines Dismantled . | . . . . . . . . . . . Machines Sabotaged . | . . . . . . . . . . . Overloaded Fab Kills . | . . . . . . . . . . . Hacking | -11 -10 -10 -9 -9 -9 -8 -8 -7 -7 -7 --------- Run | Yrd Mat Min Mat Min Exi Min Mat Fac Was Fac Machines Accessed 58 | . 10 . 15 . 4 1 10 11 . 7 Terminals 33 | . 7 . 10 . . 1 6 8 . 1 Fabricators 3 | . . . . . . . . . . 3 Repair Stations 4 | . 1 . 1 . . . 1 . . 1 Recycling Units 6 | . 2 . 2 . . . 2 . . . Scanalyzers 4 | . . . 2 . . . . 2 . . Garrison Access 4 | . . . . . . . 1 1 . 2 Total Hacks 200 | . 26 . 47 . 49 5 29 25 . 19 Successful 128 | . 15 . 27 . 49 2 17 10 . 8 Failed 72 | . 11 . 20 . . 3 12 15 . 11 Catastrophic 11 | . 1 . 3 . . . 2 4 . 1 Database Lockouts . | . . . . . . . . . . . Manual 72 | . 8 . 28 . 1 4 14 13 . 4 Terminals 95 | . 21 . 31 . . 5 17 19 . 2 Fabricators 11 | . . . . . . . . . . 11 Repair Stations 8 | . 1 . 2 . . . 3 . . 2 Recycling Units 20 | . 4 . 8 . . . 8 . . . Scanalyzers 11 | . . . 6 . . . . 5 . . Garrison Access 6 | . . . . . . . 1 1 . 4 Terminal Hacks 78 | . 10 . 9 . 49 2 6 2 . . Record 51 | . 1 . . . 49 1 . . . . Robot Analysis 1 | . 1 . . . . . . . . . Prototype ID Bank 2 | . 2 . . . . . . . . . Open DSF 1 | . . . . . . . . 1 . . Branch Access Points 1 | . . . . . . 1 . . . . Alert Level 4 | . 1 . 3 . . . . . . . Unreport Threat 7 | . . . 3 . . . 3 1 . . Locate Traps 2 | . 1 . . . . . 1 . . . Dispatch Records 2 | . 1 . 1 . . . . . . . Transport Status 1 | . 1 . . . . . . . . . Hauler Manifests 2 | . . . 1 . . . 1 . . . Zone Layout 4 | . 2 . 1 . . . 1 . . . Fabricator Hacks 5 | . . . . . . . . . . 5 Load Schematic 2 | . . . . . . . . . . 2 Build 3 | . . . . . . . . . . 3 Repair Station Hacks 6 | . . . 2 . . . 2 . . 2 Scan Component 3 | . . . 1 . . . 1 . . 1 Repair 3 | . . . 1 . . . 1 . . 1 Recycling Unit Hacks 7 | . 1 . 3 . . . 3 . . . Report Inventory 5 | . 1 . 2 . . . 2 . . . Retrieve Components 2 | . . . 1 . . . 1 . . . Scanalyzer 10 | . . . 6 . . . . 4 . . Insert Component 4 | . . . 2 . . . . 2 . . Analyze 6 | . . . 4 . . . . 2 . . Garrison Access Hacks 3 | . . . . . . . 1 1 . 1 Seal Access 3 | . . . . . . . 1 1 . 1 Unauthorized Hacks 19 | . 4 . 7 . . . 5 3 . . Terminals 11 | . 2 . 3 . . . 3 3 . . Assimilate 1 | . . . . . . . . 1 . . Botnet 10 | . 2 . 3 . . . 3 2 . . Fabricators . | . . . . . . . . . . . Repair Stations . | . . . . . . . . . . . Recycling Units 8 | . 2 . 4 . . . 2 . . . Reject 6 | . 2 . 2 . . . 2 . . . Mask 2 | . . . 2 . . . . . . . Scanalyzers . | . . . . . . . . . . . Garrison Access . | . . . . . . . . . . . Data Cores Recovered . | . . . . . . . . . . . Used . | . . . . . . . . . . . Hacking Detections 46 | . 9 . 12 . . 1 9 9 . 6 Full Trace Events 21 | . 4 . 7 . . . 2 3 . 5 Feedback Events . | . . . . . . . . . . . Feedback Blocked . | . . . . . . . . . . . Robot Schematics Acquired . | . . . . . . . . . . . Robots Built . | . . . . . . . . . . . Authchips . | . . . . . . . . . . . Time . | . . . . . . . . . . . Total Robot Build Rating . | . . . . . . . . . . . Part Schematics Acquired 4 | . . . 2 . . . . 2 . . Parts Built 6 | . . . . . . . . . . 6 Authchips . | . . . . . . . . . . . Time 159 | . . . . . . . . . . 159 Total Part Build Rating 28 | . . . . . . . . . . 28 Parts Repaired 3 | . . . 1 . . . 1 . . 1 Time 76 | . . . 38 . . . 19 . . 19 Parts Recycled . | . . . . . . . . . . . Recycled Matter . | . . . . . . . . . . . Retrieved Matter . | . . . . . . . . . . . Retrieved Components 17 | . . . 10 . . . 7 . . . Parts Scanalyzed 4 | . . . 2 . . . . 2 . . Part Schematics Acquired 4 | . . . 2 . . . . 2 . . Parts Damaged . | . . . . . . . . . . . Bothacking | -11 -10 -10 -9 -9 -9 -8 -8 -7 -7 -7 ------------ Run | Yrd Mat Min Mat Min Exi Min Mat Fac Was Fac Used RIF Installer . | . . . . . . . . . . . Robots Hacked 7 | . 7 . . . . . . . . . Non-combat 6 | . 6 . . . . . . . . . Combat 1 | . 1 . . . . . . . . . Robot Hacks Applied 10 | . 10 . . . . . . . . . parse_system 6 | . 6 . . . . . . . . . no_distress 3 | . 3 . . . . . . . . . check_alert 1 | . 1 . . . . . . . . . Relay Couplers Released . | . . . . . . . . . . . Fabnet Peak Effective % . | . . . . . . . . . . . Robots Rewired . | . . . . . . . . . . . Allies Hacked . | . . . . . . . . . . . Hacks Repelled . | . . . . . . . . . . . Allies | -11 -10 -10 -9 -9 -9 -8 -8 -7 -7 -7 -------- Run | Yrd Mat Min Mat Min Exi Min Mat Fac Was Fac Total Allies 1 | . . . . . . . . . 1 . Largest Group 1 | . . . . . . . . . 1 . Highest-Rated Group 31 | . . . . . . . . . 31 . Highest-Rated Ally 31 | . . . . . . . . . 31 . Total Orders . | . . . . . . . . . . . Ally Attacks 15 | . . . . . . . . . 15 . Total Damage 319 | . . . . . . . . . 319 . Kills . | . . . . . . . . . . . Allies Corrupted . | . . . . . . . . . . . Allies Melted . | . . . . . . . . . . . Intel | -11 -10 -10 -9 -9 -9 -8 -8 -7 -7 -7 ------- Run | Yrd Mat Min Mat Min Exi Min Mat Fac Was Fac Robot Analysis Total 1 | . 1 . . . . . . . . . Derelict Logs Recovered 5 | . . 3 . 2 . . . . . . Drone Launches . | . . . . . . . . . . . Drone Recoveries . | . . . . . . . . . . . Exploration | -11 -10 -10 -9 -9 -9 -8 -8 -7 -7 -7 ------------- Run | Yrd Mat Min Mat Min Exi Min Mat Fac Was Fac Turns Passed 16273 | 85 1829 1801 2495 713 1533 900 2212 2939 138 1628 Spaces Moved 8301 | 48 894 937 1114 384 788 500 942 1577 114 1003 Core 21 | . . . . . . 4 . . . 17 Treads 5830 | 14 773 937 997 384 788 188 706 1043 . . Legs 39 | 34 . . . . . . 5 . . . Wheels 2411 | . 121 . 117 . . 308 231 534 114 986 Hover . | . . . . . . . . . . . Flight . | . . . . . . . . . . . Fastest Speed 95 | 120 160 160 105 160 160 95 100 115 115 115 Average Speed 153 | 131 162 160 179 160 160 126 162 149 115 123 Slowest Speed 600 | 160 320 160 320 160 160 450 250 170 115 600 Overloaded Moves . | . . . . . . . . . . . Propulsion Burnouts . | . . . . . . . . . . . Robots Hopped . | . . . . . . . . . . . Cave-ins Triggered 2 | . . . . . . 1 1 . . . Exploration Rate (%) 65 | 5 99 101 88 56 93 82 65 37 85 14 Regions Visited 10 Branch Regions 4 Pre-discovered Areas 1 | . . . . . 1 . . . . . Known Exits Taken 6 | . . 1 1 1 1 1 1 . . . Unknown Exits Taken 2 | 1 1 . . . . . . . . . Scrap Searched 2 | . . 1 . . . 1 . . . . Spaces Dug 102 | . 8 . 11 . . 15 11 42 . 15 Terrain Destroyed 548 | . 8 48 92 46 . 67 166 68 . 53 Melee 77 | . . . 11 . . 2 11 38 . 15 Projectile 42 | . 8 . 1 . . . 7 17 . 9 AOE 429 | . . 48 80 46 . 65 148 13 . 29 Terrain Rammed . | . . . . . . . . . . . Walls Destroyed . | . . . . . . . . . . . Machines Disabled . | . . . . . . . . . . . Actions | -11 -10 -10 -9 -9 -9 -8 -8 -7 -7 -7 --------- Run | Yrd Mat Min Mat Min Exi Min Mat Fac Was Fac Total 10760 | 62 1111 1216 1396 449 1063 704 1401 1948 119 1291 Wait 1139 | . 37 249 25 29 267 141 112 140 . 139 Move 8292 | 47 893 936 1113 383 787 499 941 1577 113 1003 Hop . | . . . . . . . . . . . Pick Up 141 | 2 21 2 24 2 4 8 41 19 1 17 Fast Attach 66 | 1 4 . 12 2 . 2 24 9 . 12 Attach 43 | 3 2 1 11 . . 4 14 4 . 4 Detach 17 | 2 2 . 2 . . . 10 . . 1 Swap 258 | . 36 7 36 10 1 12 64 54 4 34 Drop 174 | 2 21 1 31 4 4 5 53 28 1 24 Fire 496 | 5 81 20 129 17 . 31 125 59 . 29 Melee 128 | . 14 . 13 2 . 2 16 56 . 25 Ram 3 | . . . . . . . . . . 3 Kick . | . . . . . . . . . . . Crush 3 | . . . . . . . 1 2 . . Escape Stasis . | . . . . . . . . . . . Rewire . | . . . . . . . . . . . Trap . | . . . . . . . . . . . Miscellaneous . | . . . . . . . . . . . Route ------- -11/Scrapyard -10/Materials (discovered 6 exits: *Mat x3 / [*Min x2] / *Sub) -10/Mines (discovered 3 exits: *Mat x2 / *Sub) -9/Materials (discovered 3 exits: *Mat x2 / *Min) -9/Mines (discovered 2 exits: *Mat / *Exi) -9/Exiles (discovered 2 exits: *Min x2) -8/Mines -8/Materials (discovered 2 exits: *Fac x2) -7/Factory (discovered 2 exits: *Fac / Sto) -7/Waste -7/Factory History --------- Turn | Location | Event 1 | -11/Scrapyard | Discovered new exit (range 3) 86 | -11/Scrapyard | Entered Materials 323 | -10/Materials | Build established: Mutant 391 | -10/Materials | Discovered new exit (range 9) 505 | -10/Materials | Discovered new exit (range 11) 776 | -10/Materials | Discovered new exit (range 9) 1001 | -10/Materials | Discovered new exit (range 16) 1738 | -10/Materials | Discovered new exit (range 8) 1740 | -10/Materials | Core integrity fell below 50% 1853 | -10/Materials | Discovered new exit (range 7) 1915 | -10/Materials | Entered Mines 2184 | -10/Mines | Received a Rocket Launcher from a helpful Derelict 2396 | -10/Mines | Learned Materials terminal intel 2849 | -10/Mines | Discovered new exit (range 14) 2904 | -10/Mines | Learned 4 Materials zone layouts 2913 | -10/Mines | Discovered new exit (range 9) 3179 | -10/Mines | Discovered new exit (range 6) 3209 | -10/Mines | Identified exit to Subcaves 3387 | -10/Mines | Identified exit to Materials 3716 | -10/Mines | Entered Materials 3716 | -9/Materials | Evolved 2 slots: Utility x2 3718 | -9/Materials | Loaded intel: 12 terminal locations 4653 | -9/Materials | Discovered new exit (range 16) 4767 | -9/Materials | Identified exit to Materials 4791 | -9/Materials | Build established: Scavenger-Mutant 4859 | -9/Materials | Repaired Hrd. Medium Armor Plating 5011 | -9/Materials | Discovered new exit (range 15) 5077 | -9/Materials | Identified exit to Mines 5549 | -9/Materials | Discovered exit to Materials (range 11) 6211 | -9/Materials | Entered Mines 6283 | -9/Mines | Learned 4 Materials zone layouts 6437 | -9/Mines | Learned Materials stockpile data 6486 | -9/Mines | Deemed a non-threat by the Exiles lab entrance 6486 | -9/Mines | Discovered new exit (range 5) 6491 | -9/Mines | Identified exit to Exiles 6600 | -9/Mines | Discovered exit to Materials (range 5) 6757 | -9/Mines | YI-UF0 nonchalantly dropped a Grenade Launcher on the ground 6924 | -9/Mines | Entered Exiles 6963 | -9/Exiles | Met 8R-AWN 6992 | -9/Exiles | Met EX-HEX 7072 | -9/Exiles | Met EX-DEC 7114 | -9/Exiles | Visited The Gauntlet 7626 | -9/Exiles | Learned location of Zion (-7) 7708 | -9/Exiles | Discovered new exit (range 14) 7727 | -9/Exiles | Identified exit to Mines 7850 | -9/Exiles | Met EX-BIN 8430 | -9/Exiles | Discovered exit to Mines (range 15) 8457 | -9/Exiles | Entered Mines 8699 | -8/Mines | Core integrity fell below 50% 8898 | -8/Mines | Crushed by falling debris 9187 | -8/Mines | Discovered exit to Materials (range 9) 9357 | -8/Mines | Entered Materials 9357 | -8/Materials | Evolved 2 slots: Propulsion x1, Utility x1 9358 | -8/Materials | Identified exit to Factory 9695 | -8/Materials | Lost 3 parts (1p1n1w) 9763 | -8/Materials | Crushed by falling debris 9794 | -8/Materials | Lost 4 parts (2u2w) 9813 | -8/Materials | System corruption reached 10% 10390 | -8/Materials | Repaired Hrd. Medium Armor Plating 10900 | -8/Materials | Core integrity fell below 50% 10959 | -8/Materials | Discovered exit to Factory (range 6) 11045 | -8/Materials | Lost 5 parts (3n1u1w) 11569 | -8/Materials | Entered Factory 11569 | -7/Factory | Evolved 2 slots: Utility x2 11570 | -7/Factory | Identified exit to Storage 11577 | -7/Factory | Identified exit to DSF 11629 | -7/Factory | Build established: Assassin 12525 | -7/Factory | Discovered new exit (range 5) 12530 | -7/Factory | Identified exit to Factory 13296 | -7/Factory | Cargo convoy interrupted 14508 | -7/Factory | Sucked down chute 14508 | -7/Factory | Entered Waste 14509 | -7/Waste | Met a frightened Derelict 14523 | -7/Waste | EMP discharged 14523 | -7/Waste | System corruption reached 10% 14529 | -7/Waste | Spotted C-40 Crusher 14550 | -7/Waste | Spotted C-40 Crusher 14558 | -7/Waste | Crushed by Compactor (1 part destroyed) 14561 | -7/Waste | Spotted C-40 Crusher 14567 | -7/Waste | Spotted C-40 Crusher 14576 | -7/Waste | Spotted C-40 Crusher 14609 | -7/Waste | Spotted C-40 Crusher 14623 | -7/Waste | EMP discharged 14627 | -7/Waste | Crushed by Compactor (1 part destroyed) 14634 | -7/Waste | Discovered new exit (range 10) 14645 | -7/Waste | Identified exit to Factory 14646 | -7/Waste | Entered Factory 14760 | -7/Factory | Core integrity fell below 50% 14980 | -7/Factory | Fabricated Lrn. Tractor Beam (x2) 15679 | -7/Factory | Repaired Imp. Utility Shielding 15800 | -7/Factory | Fabricated Imp. Force Field (x2) 15967 | -7/Factory | Fabricated Adv. Assault Cannon? 16057 | -7/Factory | Core integrity fell below 20% 16274 | -7/Factory | Destroyed by G-47 Trooper with Particle Gun Last Messages --------------- 16196_ G-47 Trooper knocked back. 16196_ U-05 Engineer lays Concrete. 16199_ The unstable cave ceiling collapses. 16203_ Med. Reactive Plating destroyed. 16205_ Acquired 4 matter. 16205_ Acquired 9 matter. 16205_ U-05 Engineer lays Concrete. 16208_ I&78HXGUTSXENP2#3 NYBEIVF FRXRUYRXFZY9 16208_ U-05 Engineer lays Concrete. 16209_ U-05 Engineer builds a Wall. 16209_ U-05 Engineer lays Concrete. 16212_ The unstable cave ceiling collapses. 16212_ U-05 Engineer lays Concrete. 16222_ Acquired Hcp. Battery. 16225_ System corrupted: Arm. Huge Wheel rejected. 16225_ Dropped Lrg. Storage Unit. 16226_ Dropped Adv. Assault Cannon. 16240_ System corrupted: Matter fused (-4). 16256_ 3H,J%DHCAW8:CK,HVY9AQJUKCW 16273_ Imp. Medium Armor Plating destroyed. Map ----- +----------------------------------------------------+ | ???????????????? ## | | ??????????????? ]]] ## [!! | | ??????????????? ]]] ## [! | | ?????????????? ]]] + !! ! | | ?????????????? ############# # ] | | ??????????????? ?############ # " F" | | ?????????????????? # ? #### # """" | | ????????????????????### # ? #### # | | ??????????????????????# # ? #### # # | | ??????????????????????# # #### ### | | ??????????????????????+ + ! ### ! | | ??????????????????????# # / * | | ??????????????????????# # = ### | | ??????????????????????# # ?#### # | | ??????????????????????# g# ? ##### ## | | ??????????????????????# ###?###???#### # | | ??????????????????????# #???? #???#?## # | | ??????????????????????# #???? #???#?## # | | ??????????????????????# #####+######## # | | ??????????????????????# # # # | | ??????????????????????# # [ # # | | ??????????????????????# # # # | | ??????????????????????# # ! # # | | ??????????????????????# # ]!!*] + # | | ??????????????????????+ # !!=g! #### # | | ??????????????????????# @ g ]!] #??# # | | ??????????????????????# # ! !#??? # | | ??????????????????????# # #??? # | | ??????????????????????## ## #??? # | | ???????????????????????# ## #??? # | | ???????????????????????# ## #??? # | | ???????????????????????# ###############???? # | | ???????????????????????# #??????????????????? # | | ???????????????????????# t #??????????????????? # | | ???????????????????????# #???????????????????? # | | ???????????????????????# ?????????????????????? | | ???????????????????????# ?????????????????????? | | ???????????????????????# ?????????????????????? | | ???????????????????????## ?????????????????????? | | ????????????????????????# ?????????????????????? | | ????????????????????????# ?????????????????????? | | ????????????????????????#### ????????????????????? | | ???????????????????????????? ????????????????????? | | ???????????????????????????? ????????????????????? | | ?????????????????????????????????????????????????? | | ?????????????????????????????????????????????????? | | ?????????????????????????????????????????????????? | | ?????????????????????????????????????????????????? | | ?????????????????????????????????????????????????? | | ?????????????????????????????????????????????????? | +----------------------------------------------------+ Best States ------------- Heat Dissipation 50 Energy Generation 18 Energy Capacity 300 Matter Stores 318 Matter Capacity 500 Sight Range 20 Robot Scan Range 15 Terrain Scan Range 16 Terrain Scan Density 210 Jamming Range 12 EM Shielding 2 Armor Coverage 450 Resistance: KI 30 Resistance: EM 20 Utility Shielding 66 Evasion (%) 55 Targeting Accuracy 8 Recoil Reduction 3 Kinecelleration 30 Item Schematics ----------------- Hrd. Medium Armor Plating | -9/Materials | Scanalyzed Hvy. Assault Rifle | -9/Materials | Scanalyzed Adv. Assault Cannon | -7/Factory | Scanalyzed Lrn. Tractor Beam | -7/Factory | Scanalyzed Robot Schematics ------------------ None Fabricated ------------ Lrn. Tractor Beam | x2 | -7/Factory Imp. Force Field | x2 | -7/Factory | Preloaded Adv. Assault Cannon | x2 | -7/Factory Alien Tech Used ----------------- None Achievements -------------- None Challenges ------------ None Game ------ Seed ReinforcedDamperBroadsword Manual? 0 Play Time 03:27:34 Cumulative 97.8 hours Start 2024.05.16 @ 16:54:49 End 2024.05.17 @ 19:57:25 Sessions 8 Manual Loads 0 Difficulty Rogue Special Mode None Game No. 19 Rogue 13 Adventurer 6 Explorer 0 Win Type - Total 1 Types 1/0/0/0/0/0/0/0/0 Lore% 34 Gallery% 48 Achievement% 41 Wizard Run 0 Options --------- Layout 0 ASCII 0 Keyboard 1 Movement Vi Keybinds 0 Fullscreen 1 Font 18/SmallcapsGlow Map View 66x52 Zoom Use 0% Tactical HUD 1 Map Filters NONE Filters NONE Steam 0 RUN: 25533505-74ed-4459-a3ee-89a4ac293640